bitfinex-derivatives/quotes_BNBF0:USTF0_20250511
["timestamp","ask_amount","ask_price","bid_price","bid_amount"]
[1746932867734,0.24664934,663.27,661.51,0.30226752]
[1746932867927,0.24664934,663.26,661.52,1.47844849]
[1746932868134,0.24664934,663.25,661.53,0.30226752]
[1746932868332,0.24664934,663.25,661.54,0.30226752]
[1746932868633,0.24664934,663.24,661.55,0.30226752]
[1746932868835,0.24664934,663.24,661.56,0.30226752]
[1746932869032,0.24664934,663.23,661.57,1.47844849]
[1746932869236,0.24664934,663.22,661.58,0.30226752]
[1746932869438,0.24664934,663.21,661.59,1.47844849]
[1746932869630,0.24664934,663.21,661.6,0.30226752]
[1746932869833,0.24664934,663.2,661.61,0.30226752]
[1746932870031,0.26270892,663.59,661.62,0.30226752]
[1746932870032,0.24664934,663.19,661.62,0.30226752]
[1746932870235,0.24664934,663.18,661.63,1.47844849]
[1746932870431,0.24664934,663.32,661.64,0.30226752]
[1746932870636,0.24664934,663.31,661.65,0.30226752]
[1746932870831,0.24664934,663.31,661.66,0.30226752]
[1746932871138,1.93593394,663.33,661.67,0.30226752]
[1746932871333,0.24672861,663.3,661.68,1.17618097]
[1746932871635,0.24672861,663.29,661.68,1.17618097]
[1746932871931,0.24672861,663.28,661.68,1.17618097]
[1746932872133,0.24672861,663.28,661.49,0.96369207]
[1746932872337,0.24672861,663.27,661.5,0.30219298]
[1746932872535,0.24672861,663.26,661.51,0.30219298]
[1746932872734,0.24672861,663.25,661.52,0.30219298]
[1746932872936,0.24672861,663.24,661.53,0.30219298]
[1746932873135,0.24672861,663.32,661.54,0.30219298]
[1746932873337,0.24672861,663.32,661.55,1.47756272]
[1746932873538,0.24672861,663.31,661.56,0.30219298]
[1746932873739,0.24672861,663.3,661.57,0.30219298]
[1746932874035,0.24672861,663.46,661.58,0.30219298]
[1746932874238,0.24672861,663.29,661.59,0.30219298]
[1746932874437,0.24672861,663.46,661.59,0.30219298]
[1746932874635,0.24672861,663.45,661.59,0.30219298]
[1746932874835,0.24672861,663.45,661.6,1.17536974]
[1746932875139,0.24672861,663.44,661.61,0.30219298]
[1746932875339,0.24672861,663.44,661.6,1.17536974]
[1746932875340,0.24672861,663.44,661.62,0.30219298]
[1746932875638,0.24672861,663.44,661.63,1.47756272]
[1746932875838,0.24672861,663.43,661.64,0.30219298]
[1746932876040,0.24672861,663.43,661.65,1.47756272]
[1746932876237,0.24672861,663.43,661.66,0.30219298]
[1746932876542,0.24672861,663.42,661.67,0.30219298]
[1746932876745,0.24672861,663.62,661.68,0.30219298]
[1746932876943,0.24672861,663.62,661.65,1.17536974]
[1746932877244,0.24672861,663.61,661.66,1.47754856]
[1746932877439,0.24672861,663.61,661.67,0.30217882]
[1746932877642,0.24672861,663.6,661.68,0.30217882]
[1746932877840,0.24672861,663.6,661.69,0.30217882]
[1746932878038,0.24672861,663.6,661.58,0.26265241]
[1746932878239,0.24672861,663.59,661.59,1.47725433]
[1746932878445,0.24672861,663.58,661.6,0.30217958]
[1746932878844,0.24672861,663.57,661.6,0.30217958]
[1746932879141,0.24672861,663.57,661.61,1.17507475]
[1746932879343,0.24672861,663.56,661.62,0.30217958]
[1746932879546,0.24672861,663.55,661.62,0.30217958]
[1746932879743,0.24672861,663.55,661.63,1.17507475]
[1746932879947,0.24672861,663.54,661.64,0.30217958]
[1746932880148,0.24672861,663.54,661.65,1.17507475]
[1746932880349,0.24672861,663.53,661.66,0.30217958]
[1746932880548,0.24672861,663.53,661.67,0.30217079]
[1746932880750,0.24672861,663.52,661.68,0.30217079]
[1746932881051,0.24672861,663.52,661.69,1.47724554]
[1746932881251,0.24672861,663.51,661.7,0.30217079]
[1746932881451,0.24672861,663.51,661.71,0.30217079]
[1746932881746,0.24672861,663.5,661.72,1.47778492]
[1746932881951,1.93593394,663.25,661.73,0.30215535]
[1746932882146,1.93593394,663.25,661.72,1.17561413]
[1746932882147,0.24672861,663.24,661.74,0.30215535]
[1746932882445,0.24672861,663.24,661.75,0.30215535]
[1746932882645,0.24672861,663.23,661.76,0.30215535]
[1746932882844,0.24672861,663.23,661.77,0.30215535]
[1746932883050,0.24672861,663.22,661.78,0.30215535]
[1746932883245,0.24672861,663.22,661.76,0.655]
[1746932883449,0.24672861,663.24,661.77,0.3021447]
[1746932883747,0.24672861,663.24,661.78,0.3021447]
[1746932883951,2.18266255,663.24,661.79,0.3021447]
[1746932884151,2.18266255,663.24,661.8,0.3021447]
[1746932884452,0.24672861,663.23,661.81,1.47806162]
[1746932884650,0.24672861,663.23,661.82,0.3021447]
[1746932884851,0.24672861,663.23,661.83,1.47806162]
[1746932885052,0.24672861,663.23,661.84,0.3021447]
[1746932885248,0.24672861,663.23,661.85,0.3021447]
[1746932885448,0.24672861,663.23,661.86,0.3021447]
[1746932885647,0.24672861,663.23,661.85,0.647]
[1746932885850,0.24672861,663.23,661.86,0.3021107]
[1746932886050,0.24672861,663.23,661.85,0.647]
[1746932886249,0.24672861,663.23,661.86,0.30210895]
[1746932886449,0.24672861,663.23,661.85,0.647]
[1746932886652,0.24672861,663.23,661.86,0.30210851]
[1746932886853,0.24672861,663.59,661.85,0.647]
[1746932887054,0.24672861,663.58,661.86,0.30210851]
[1746932887254,0.24672861,663.58,661.85,0.647]
[1746932887455,0.24672861,663.57,661.86,0.30210851]
[1746932887654,0.24672861,663.57,661.85,0.647]
[1746932887851,0.24672861,663.56,661.85,0.647]
[1746932888255,0.24672861,663.55,661.85,0.647]
[1746932888455,0.24672861,663.61,661.85,0.647]
[1746932889154,0.24672861,663.61,661.86,1.47840569]
[1746932889352,0.24672861,663.61,661.87,0.30208918]
[1746932889555,0.24672861,663.61,661.88,0.30208918]
[1746932889752,0.24672861,663.61,661.89,1.47838428]
[1746932889955,0.24672861,663.61,661.9,0.30208918]
[1746932890152,0.24672861,663.61,661.91,0.30208918]
[1746932890350,0.24672861,663.61,661.89,1.1762951]
[1746932890553,0.24672861,663.61,661.9,0.30208979]
[1746932890750,0.24672861,663.87,661.91,0.30208979]
[1746932891057,0.24672861,663.86,661.85,0.647]
[1746932891352,0.26259593,663.88,661.92,1.89704333]
[1746932891557,0.26259593,663.88,661.93,0.30208979]
[1746932891757,0.24664382,663.87,661.94,0.30208935]
[1746932891958,0.24664382,663.86,661.95,0.30208935]
[1746932892156,0.24664382,663.86,661.96,0.30208935]
[1746932892359,0.24664382,663.86,661.92,0.721]
[1746932892558,0.24664382,663.85,661.93,0.30209404]
[1746932892752,0.24664382,663.85,661.94,0.30209404]
[1746932893058,0.24664382,663.84,661.95,0.30209404]
[1746932893254,0.24664382,663.84,661.96,0.30208991]
[1746932893458,0.24664382,663.84,661.97,0.30208991]
[1746932893759,0.24664382,663.83,661.98,0.3020816]
[1746932893960,1.93593394,663.52,661.99,0.3020816]
[1746932894159,1.93593394,663.52,661.92,0.721]
[1746932894459,0.24664382,663.51,661.93,1.47852676]
[1746932894654,0.24664382,663.51,661.94,0.3020812]
[1746932894854,0.24664382,663.51,661.95,1.47852676]
[1746932895054,0.24664382,663.5,661.96,0.3020812]
[1746932895260,0.24664382,663.51,661.97,0.3020812]
[1746932895460,0.24664382,663.51,661.98,1.47852676]
[1746932895655,0.24664382,663.51,661.99,0.3020812]
[1746932895861,0.24664382,663.51,662.0,0.3020812]
[1746932896060,0.24664382,663.51,662.01,0.3020812]
[1746932896261,0.24664382,663.51,662.02,0.3020812]
[1746932896461,0.24664382,663.51,662.03,1.47852676]
[1746932896656,0.24664382,663.51,662.04,0.3020812]
[1746932896861,0.24664382,663.51,662.05,0.3020812]
[1746932897061,0.24664382,663.51,662.06,0.3019912]
[1746932897261,0.24664382,663.51,662.07,0.3019912]
[1746932897562,0.24664382,663.51,661.92,0.721]
[1746932897563,0.24664382,663.71,662.08,1.47843676]
[1746932897763,0.24664382,663.5,662.09,0.3019912]
[1746932897961,0.24664382,663.5,662.1,0.3019912]
[1746932898160,0.24664382,663.71,662.11,0.3019912]
[1746932898466,0.24664382,663.7,662.11,0.3019912]
[1746932898667,0.24664382,663.7,662.12,1.17644556]
[1746932898858,0.24664382,663.69,662.13,0.3019912]
[1746932899062,0.24664382,663.69,662.14,0.30200485]
[1746932899362,0.24664382,663.68,662.15,0.30200485]
[1746932899560,0.24664382,663.68,661.97,0.26253352]
[1746932899765,0.24664382,663.68,661.98,1.47739415]
[1746932899964,0.24664382,663.92,661.99,0.30201347]
[1746932900162,0.24664382,663.91,662.0,0.30201347]
[1746932900365,0.24664382,663.91,662.01,1.47739415]
[1746932900561,0.24664382,663.9,662.02,0.30201347]
[1746932900759,0.24664382,663.9,662.03,0.30201347]
[1746932900965,0.24664382,663.89,662.04,0.30201347]
[1746932901267,0.24664382,663.88,662.05,1.47739415]
[1746932901460,0.24664382,663.88,662.05,1.17538068]
[1746932901660,0.24664382,663.87,662.05,1.17538068]
[1746932901866,0.24664382,663.86,662.01,0.474]
[1746932902362,0.26253451,664.0,662.01,0.474]
[1746932902363,0.24664382,663.85,662.01,0.474]
[1746932902666,0.24664382,663.85,662.02,0.30206104]
[1746932902868,0.24664382,663.84,662.03,0.30204072]
[1746932903065,0.24664382,663.84,662.04,0.30204072]
[1746932903363,0.26253451,664.0,662.05,0.30204459]
[1746932903563,0.26253451,664.0,662.06,0.30203862]
[1746932903766,0.24660096,663.99,662.07,0.30203862]
[1746932903968,0.24660096,663.99,662.08,0.30202025]
[1746932904168,0.24660096,663.98,662.09,0.30202025]
[1746932904468,0.24660096,663.98,662.1,0.30202025]
[1746932904665,0.24660096,663.98,662.09,0.482]
[1746932904866,0.24660096,663.97,662.1,0.30202039]
[1746932905067,0.24660096,663.96,662.11,0.30202039]
[1746932905370,0.24660096,663.95,662.09,0.482]
[1746932905667,0.24660096,663.95,662.1,0.30201629]
[1746932905870,0.2625058,664.06,662.09,0.482]
[1746932905871,1.93593394,663.69,662.09,0.482]
[1746932906271,0.24660096,663.68,662.09,0.482]
[1746932906566,0.24660096,663.67,662.09,0.482]
[1746932907172,1.93593394,663.57,662.09,0.482]
[1746932907472,0.24660096,663.56,662.09,0.482]
[1746932907773,0.24660096,663.55,662.09,0.482]
[1746932908771,0.24660096,663.54,662.09,0.482]
[1746932909178,0.24660096,663.54,662.1,0.30202189]
[1746932909377,0.24660096,663.53,662.09,0.482]
[1746932909576,0.24660096,663.53,662.1,0.30201798]
[1746932909773,0.24660096,663.52,662.11,0.30201299]
[1746932909973,0.24660096,663.52,662.09,0.482]
[1746932910179,0.24660096,663.51,662.1,0.30201312]
[1746932910374,0.24660096,663.51,662.09,0.482]
[1746932910574,0.24660096,663.5,662.1,0.30201157]
[1746932910776,0.24660096,663.5,662.11,0.30201157]
[1746932910977,0.24660096,663.49,662.09,0.74453649]
[1746932911177,0.24660096,663.49,662.1,0.30201147]
[1746932911375,0.24660096,663.48,662.11,0.30201147]
[1746932911579,0.24660096,663.48,662.09,0.74453649]
[1746932911779,0.24660096,663.47,662.09,0.74453649]
[1746932912380,0.24660096,663.46,662.1,0.30199209]
[1746932912675,0.24660096,663.46,662.09,0.482]
[1746932912880,0.24660096,663.45,662.09,0.482]
[1746932913082,0.24660096,663.45,662.09,0.74453451]
[1746932913283,0.24660096,663.44,662.1,0.30199705]
[1746932913476,0.24660096,663.44,662.09,0.74453451]
[1746932913777,0.24660096,663.43,662.1,0.30199367]
[1746932913978,0.24660096,663.43,662.09,0.74453451]
[1746932914278,0.24660096,663.42,662.1,0.30199323]
[1746932914482,0.24660096,663.42,662.11,0.30198902]
[1746932914681,0.24660096,663.42,662.09,0.74453451]
[1746932914883,0.24660096,663.41,662.09,0.74453451]
[1746932915181,0.24660096,663.4,662.1,0.3019941]
[1746932915478,0.24660096,663.39,662.09,0.74453451]
[1746932915777,0.24660096,663.38,662.1,0.30199323]
[1746932915975,0.24660096,663.37,662.09,0.74453848]
[1746932916181,0.24660096,663.37,662.1,0.30199005]
[1746932916381,0.24660096,663.37,662.11,0.30199005]
[1746932916581,0.24660096,663.36,662.09,0.74453848]
[1746932916882,0.24660096,663.35,662.09,0.74453848]
[1746932917182,0.24660096,663.38,662.09,0.74453848]
[1746932917578,0.24660096,663.37,662.09,0.74453848]
[1746932917977,0.24660096,663.36,662.09,0.74453848]
[1746932918182,0.24660096,663.36,662.1,0.30198155]
[1746932918379,0.24660096,663.47,662.11,0.30197621]
[1746932918582,0.24660096,663.47,662.12,1.48261668]
[1746932918788,0.24660096,663.47,662.13,0.30197621]
[1746932919083,0.24660096,663.47,662.14,1.48261668]
[1746932919279,0.24660096,663.47,662.15,0.30197621]
[1746932919483,0.24660096,663.47,662.16,0.30197621]
[1746932919681,0.24660096,663.47,662.17,1.48261668]
[1746932919879,0.24660096,663.47,662.18,0.30197621]
[1746932920080,0.24660096,663.47,662.19,0.30197621]
[1746932920283,0.24660096,663.88,662.2,0.30197621]
[1746932920580,0.24660096,663.88,662.21,2.22461668]
[1746932920783,0.24660096,663.87,662.22,0.30197621]
[1746932920984,0.24660096,663.86,662.23,0.30197621]
[1746932921183,0.24660096,663.86,662.24,1.48261668]
[1746932921385,0.24660096,663.85,662.25,0.30197621]
[1746932921680,1.93593394,663.89,662.24,1.18064047]
[1746932921681,0.24660096,663.84,662.26,0.30197621]
[1746932921884,0.24660096,663.84,662.27,0.30191826]
[1746932922085,0.24660096,663.83,662.28,0.30191826]
[1746932922284,0.24660096,663.83,662.29,1.48255873]
[1746932922585,0.24660096,663.82,662.3,0.30191826]
[1746932922782,0.24660096,663.81,662.31,0.30191826]
[1746932922980,0.24660096,663.81,662.32,0.30191826]
[1746932923180,0.24660096,663.8,662.33,1.48255873]
[1746932923385,0.24660096,663.8,662.34,0.30191826]
[1746932923686,0.24660096,663.84,662.35,0.30191826]
[1746932923886,0.24660096,663.84,662.36,1.48251222]
[1746932924087,0.24660096,663.84,662.37,0.30186675]
[1746932924288,0.24660096,663.84,662.38,0.30186675]
[1746932924589,0.24660096,663.84,662.39,1.48250722]
[1746932924784,0.24660096,663.84,662.4,0.30186675]
[1746932924984,0.24660096,663.84,662.41,0.30186675]
[1746932925184,0.24660096,663.84,662.42,0.30186675]
[1746932925383,0.24660096,663.84,662.43,0.30186675]
[1746932925588,0.24660096,663.84,662.44,0.30186675]
[1746932925885,0.24660096,663.84,662.46,0.30190502]
[1746932926089,1.93593394,664.03,662.47,0.30186675]
[1746932926290,1.93593394,664.03,662.48,1.48250722]
[1746932926486,1.93593394,664.03,662.49,0.30186675]
[1746932926792,1.93593394,664.03,662.46,0.30190502]
[1746932927090,1.93593394,664.03,662.47,0.30186038]
[1746932927291,0.24656318,664.02,662.48,0.30186038]
[1746932927491,0.24656318,664.02,662.49,1.48236181]
[1746932927689,0.24656318,664.02,662.5,0.30186038]
[1746932927893,0.24656318,664.36,662.49,1.18050143]
[1746932928088,0.24656318,664.36,662.5,0.30185267]
[1746932928291,0.24656318,664.35,662.51,0.30185247]
[1746932928493,0.24656318,664.34,662.51,1.18050143]
[1746932928893,0.24656318,664.33,662.52,1.18050143]
[1746932929191,0.24656318,664.32,662.53,0.30184643]
[1746932929394,0.24656318,664.32,662.54,0.30184643]
[1746932929592,0.24656318,664.32,662.55,0.30184643]
[1746932929792,0.24656318,664.32,662.47,1.18050143]
[1746932929989,0.24656318,664.31,662.48,1.48233518]
[1746932930193,0.24656318,664.31,662.49,0.30183375]
[1746932930391,0.24656318,664.3,662.5,0.30183375]
[1746932930694,0.24656318,664.3,662.51,1.48233518]
[1746932930895,0.24656318,664.29,662.52,0.30183375]
[1746932931190,0.24656318,664.28,662.53,1.48233518]
[1746932931395,0.24656318,664.27,662.54,0.30183375]
[1746932931695,0.24656318,664.27,662.55,0.30183375]
[1746932931895,0.24656318,664.26,662.46,0.30190502]
[1746932932095,0.24656318,664.26,662.47,0.30181781]
[1746932932297,0.24656318,664.25,662.48,0.30181781]
[1746932932495,0.24656318,664.25,662.49,0.30181781]
[1746932932698,0.24656318,664.25,662.5,1.4815272]
[1746932932892,0.24656318,664.24,662.51,0.30181781]
[1746932933095,0.24656318,664.24,662.52,0.30181781]
[1746932933394,0.24656318,664.23,662.53,0.30181781]
[1746932933593,0.24656318,664.23,662.52,1.73270939]
[1746932933793,0.24656318,664.22,662.53,0.30181963]
[1746932933998,0.24656318,664.22,662.52,0.553]
[1746932934199,0.24656318,664.22,662.53,0.30181963]
[1746932934498,0.24656318,664.21,662.52,0.553]
[1746932934699,0.24656318,664.21,662.53,0.30182007]
[1746932934899,0.24656318,664.2,662.52,0.553]
[1746932935100,0.24656318,664.2,662.53,1.18046548]
[1746932935296,0.24656318,664.19,662.53,1.18046548]
[1746932935495,1.93593394,664.39,662.53,1.18046548]
[1746932935798,0.24654419,664.38,662.53,1.18046548]
[1746932935997,0.24654419,664.38,662.52,0.553]
[1746932936204,0.24654419,664.37,662.53,0.30182268]
[1746932936403,0.24654419,664.36,662.52,0.553]
[1746932936703,0.26233858,664.48,662.53,0.30182235]
[1746932936704,0.24654419,664.35,662.53,0.30182235]
[1746932936904,0.24654419,664.35,662.52,0.553]
[1746932937105,0.24654419,664.34,662.53,0.30182176]
[1746932937300,0.24654419,664.34,662.52,0.553]
[1746932937499,0.26233858,664.48,662.52,0.553]
[1746932937500,0.24654419,664.33,662.53,0.30182153]
[1746932937704,0.24654419,664.33,662.52,0.553]
[1746932937900,0.24654419,664.32,662.53,0.30182153]
[1746932938104,0.26233858,664.48,662.52,0.553]
[1746932938305,0.26233858,664.48,662.53,1.48255313]
[1746932938604,0.24654338,664.47,662.53,1.1807316]
[1746932938805,0.24654338,664.46,662.52,0.553]
[1746932939005,0.24654338,664.46,662.55,0.30186401]
[1746932939205,0.24654338,664.45,662.55,0.30186401]
[1746932939405,0.24654338,664.44,662.55,0.30186401]
[1746932939805,0.24654338,664.43,662.55,0.30186401]
[1746932940205,0.24654338,664.42,662.55,0.30186401]
[1746932940505,0.24654338,664.41,662.55,0.30186401]
[1746932940807,0.24654338,664.4,662.55,0.30186401]
[1746932941108,0.24654338,664.39,662.55,0.30186401]
[1746932941806,0.24654338,664.38,662.55,0.30186401]
[1746932942007,0.26232968,664.44,662.55,0.30186401]
[1746932942408,0.24647386,664.43,662.55,0.30186401]
[1746932942703,0.24647386,664.42,662.55,0.30186401]
[1746932943105,0.24647386,664.41,662.55,0.30186401]
[1746932943408,0.24647386,664.4,662.55,0.30186401]
[1746932944104,0.24647386,664.39,662.55,0.30186401]
[1746932944405,0.24647386,664.38,662.55,0.30186401]
[1746932944806,0.24647386,664.37,662.55,0.30186401]
[1746932945214,1.93593394,663.94,662.55,0.30186401]
[1746932945609,0.24647386,663.93,662.55,0.30186401]
[1746932946112,0.24647386,663.92,662.56,1.24]
[1746932946412,0.24647386,663.91,662.56,1.24]
[1746932946812,0.24647386,663.9,662.56,1.24]
[1746932947213,0.24647386,663.89,662.56,1.24]
[1746932947413,0.24647386,663.89,662.58,0.30185034]
[1746932947616,0.24647386,663.88,662.58,0.30185034]
[1746932947914,0.24647386,663.88,662.59,0.3017962]
[1746932948114,0.24647386,663.87,662.61,0.30183667]
[1746932948314,0.24647386,663.94,662.62,0.3017962]
[1746932948514,0.24647386,663.94,662.64,0.30182301]
[1746932948714,0.24647386,663.94,662.65,0.3017962]
[1746932948911,0.24647386,663.94,662.67,0.30180934]
[1746932949714,0.24647386,664.63,662.67,0.30180934]
[1746932950012,0.50874226,664.63,662.67,0.30180934]
[1746932950215,0.50874226,664.63,662.68,1.18134955]
[1746932950416,0.24647386,664.62,662.7,0.30179568]
[1746932950717,0.24647386,664.61,662.7,0.30179568]
[1746932951013,0.24647386,664.6,662.7,0.30179568]
[1746932951716,0.24647386,664.59,662.7,0.30179568]
[1746932952515,0.24647386,664.58,662.7,0.30179568]
[1746932952916,0.24647386,664.57,662.7,0.30179568]
[1746932953218,0.24647386,664.56,662.7,0.30179568]
[1746932953419,1.93593394,664.42,662.7,0.30179568]
[1746932954019,0.24647386,664.41,662.7,0.30179568]
[1746932954320,0.24647386,664.4,662.7,0.30179568]
[1746932954719,0.24647386,664.39,662.7,0.30179568]
[1746932955116,0.24647386,664.38,662.7,0.30179568]
[1746932955419,0.24647386,664.37,662.7,0.30179568]
[1746932955921,1.93593394,664.42,662.7,0.30179568]
[1746932955922,0.24647386,664.36,662.7,0.30179568]
[1746932956221,0.24647386,664.35,662.7,0.30179568]
[1746932956520,0.24647386,664.34,662.7,0.30179568]
[1746932956921,0.24647386,664.33,662.7,0.30179568]
[1746932957215,0.24647386,664.32,662.7,0.30179568]
[1746932957520,0.24647386,664.31,662.7,0.30179568]
[1746932958016,0.24647386,664.3,662.7,0.30179568]
[1746932958421,0.24647386,664.29,662.7,0.30179568]
[1746932958918,0.24647386,664.28,662.7,0.30179568]
[1746932959118,0.24647386,664.27,662.7,0.30179568]
[1746932959521,0.24647386,664.26,662.7,0.30179568]
[1746932960016,0.24647386,664.31,662.7,0.30179568]
[1746932960520,0.24647386,664.31,662.71,0.715]
[1746932960722,0.24647386,664.31,662.73,0.30178202]
[1746932961024,1.93593394,664.26,662.73,0.30178202]
[1746932961418,0.24647386,664.25,662.73,0.30178202]
[1746932961822,0.24647386,664.24,662.73,0.30178202]
[1746932962220,0.24647386,664.25,662.73,0.30178202]
[1746932962722,0.24647386,664.24,662.73,0.30178202]
[1746932963021,2.1824078,664.24,662.73,0.30178202]
[1746932963224,1.93593394,664.24,662.73,0.30178202]
[1746932963524,0.24647386,664.23,662.74,0.509]
[1746932963719,0.24647386,664.23,662.76,0.30176836]
[1746932964827,0.24647386,664.25,662.76,0.30176836]
[1746932966429,1.93593394,664.26,662.76,0.30176836]
[1746932966728,1.93593394,664.5,662.76,0.30176836]
[1746932966929,0.24637885,664.25,662.76,0.30176836]
[1746932967426,0.24637885,664.49,662.76,0.30176836]
[1746932967624,0.24637885,664.48,662.76,0.30176836]
[1746932968331,0.24637885,664.47,662.76,0.30176836]
[1746932968630,0.24637885,664.46,662.76,0.30176836]
[1746932969029,0.24637885,664.45,662.76,0.30176836]
[1746932969231,1.93593394,664.38,662.76,0.30176836]
[1746932969730,0.24637885,664.37,662.76,0.30176836]
[1746932970331,0.24637885,664.36,662.76,0.30176836]
[1746932970529,0.24637885,664.35,662.76,0.30176836]
[1746932970831,0.24637885,664.37,662.76,0.30176836]
[1746932971232,0.24637885,664.36,662.76,0.30176836]
[1746932971531,0.24637885,664.37,662.76,0.30176836]
[1746932971728,0.24637885,664.37,662.77,1.1819833]
[1746932971929,0.24637885,664.44,662.77,1.1819833]
[1746932972128,0.24637885,664.43,662.76,0.30176836]
[1746932972532,0.24637885,664.42,662.76,0.30176836]
[1746932972827,0.24637885,664.41,662.76,0.30176836]
[1746932973131,0.24637885,664.4,662.76,0.30176836]
[1746932973431,0.24637885,664.39,662.76,0.30176836]
[1746932973634,0.24637885,664.39,662.77,1.18315493]
[1746932973828,0.24637885,664.39,662.79,0.3017547]
[1746932974131,0.24637885,664.38,662.79,0.3017547]
[1746932974532,0.24637885,664.56,662.79,0.3017547]
[1746932974933,0.24637885,664.55,662.79,0.3017547]
[1746932975231,0.24637885,664.54,662.79,0.3017547]
[1746932975637,0.24637885,664.53,662.79,0.3017547]
[1746932976135,0.24637885,664.52,662.79,0.3017547]
[1746932976635,0.24637885,664.51,662.79,0.3017547]
[1746932976931,0.24637885,664.5,662.79,0.3017547]
[1746932977435,0.24637885,664.49,662.79,0.3017547]
[1746932978035,0.24637885,664.48,662.79,0.3017547]
[1746932978335,0.24637885,664.47,662.79,0.3017547]
[1746932978634,0.24637885,664.47,662.8,1.18518006]
[1746932978835,0.24637885,664.46,662.82,0.30174104]
[1746932979029,0.24637885,664.45,662.82,0.30174104]
[1746932979435,0.24637885,664.44,662.82,0.30174104]
[1746932979630,0.24637885,664.43,662.82,0.30174104]
[1746932980036,0.24637885,664.42,662.82,0.30174104]
[1746932980436,0.24637885,664.65,662.82,0.30174104]
[1746932980734,0.24637885,664.64,662.82,0.30174104]
[1746932981131,0.24637885,664.63,662.82,0.30174104]
[1746932981435,0.24637885,664.62,662.82,0.30174104]
[1746932981837,0.24637885,664.61,662.82,0.30174104]
[1746932982137,0.24637885,664.6,662.82,0.30174104]
[1746932982439,0.24637885,664.59,662.82,0.30174104]
[1746932982839,0.24637885,664.58,662.82,0.30174104]
[1746932983234,0.24637885,664.57,662.82,0.30174104]
[1746932983838,0.24637885,664.56,662.82,0.30174104]
[1746932984137,0.24637885,664.55,662.82,0.30174104]
[1746932984338,0.24637885,664.55,662.83,0.3016945]
[1746932984533,0.24637885,664.54,662.85,0.30172738]
[1746932984733,0.24637885,664.54,662.86,0.3016945]
[1746932984931,0.24637885,664.54,662.88,0.30171373]
[1746932985231,0.24637885,664.53,662.89,0.3016945]
[1746932985438,1.93593394,664.49,662.91,0.30170007]
[1746932985632,1.93593394,664.49,662.92,0.3016945]
[1746932985837,1.93593394,664.49,662.94,0.30168642]
[1746932986239,0.24637885,664.48,662.95,1.18607908]
[1746932986438,0.24637885,664.47,662.95,1.18607908]
[1746932986641,0.24637885,664.46,662.94,0.30168642]
[1746932986940,0.24637885,664.45,662.94,0.30168642]
[1746932987242,0.24637885,664.44,662.94,0.30168642]
[1746932987543,0.24637885,664.43,662.94,0.30168642]
[1746932987739,0.24637885,664.42,662.94,0.30168642]
[1746932987939,0.24637885,664.42,662.95,0.471]
[1746932988145,0.24637885,664.41,662.95,0.471]
[1746932988443,0.24637885,664.4,662.95,0.471]
[1746932988839,0.24637885,664.39,662.97,0.30167277]
[1746932989142,0.24637885,664.38,662.97,0.30167277]
[1746932989344,0.24637885,664.37,662.97,0.30167277]
[1746932989545,0.24637885,664.36,662.97,0.30167277]
[1746932989945,0.24637885,664.35,662.97,0.30167277]
[1746932990139,0.24637885,664.34,662.97,0.30167277]
[1746932990340,0.24637885,664.33,662.97,0.30167277]
[1746932990641,0.24637885,664.5,662.97,0.30167277]
[1746932990846,0.24637885,664.49,662.97,0.30167277]
[1746932991146,0.24637885,664.48,662.97,0.30167277]
[1746932991442,0.24637885,664.47,662.97,0.30167277]
[1746932991646,0.24637885,664.46,662.97,0.30167277]
[1746932991949,0.24637885,664.45,662.97,0.30167277]
[1746932992146,0.24637885,664.44,662.97,0.30167277]
[1746932992445,0.24637885,664.43,662.97,0.30167277]
[1746932992646,0.24637885,664.42,662.97,0.30167277]
[1746932992845,0.24637885,664.41,662.97,0.30167277]
[1746932993146,0.24637885,664.4,662.97,0.30167277]
[1746932993342,0.24637885,664.39,662.97,0.30167277]
[1746932993545,1.93593394,664.52,662.97,0.30167277]
[1746932993546,0.24637885,664.38,662.97,0.30167277]
[1746932993841,0.24637885,664.37,662.97,0.30167277]
[1746932994045,0.24637885,664.36,662.97,0.30167277]
[1746932994242,0.24637885,664.35,662.97,0.30167277]
[1746932994545,1.93593394,664.52,662.97,0.30167277]
[1746932994740,0.24634506,664.51,662.97,0.30167277]
[1746932994943,1.93593394,664.46,662.97,0.30167277]
[1746932995345,0.24634506,664.45,662.97,0.30167277]
[1746932995546,0.24634506,664.44,662.97,0.30167277]
[1746932995748,0.24634506,664.43,662.97,0.30167277]
[1746932995950,0.24634506,664.42,662.97,0.30167277]
[1746932996249,0.24634506,664.41,662.97,0.30167277]
[1746932996448,0.24634506,664.4,662.97,0.30167277]
[1746932996653,0.24634506,664.39,662.97,0.30167277]
[1746932997045,0.24634506,664.38,662.97,0.30167277]
[1746932997450,0.24634506,664.37,662.97,0.30167277]
[1746932997651,0.24634506,664.36,662.97,0.30167277]
[1746932997851,0.24634506,664.48,662.97,0.30167277]
[1746932998051,1.93593394,664.41,662.97,0.30167277]
[1746932998255,0.24634506,664.4,662.97,0.30167277]
[1746932998950,0.24634506,664.39,662.97,0.30167277]